[Event "*** Titled Tuesday Blitz"]
[Site "Chess.com"]
[Date "2020.04.28"]
[Round "6"]
[White "Maybe00"]
[Black "kingmonkey2006"]
[Result "1/2-1/2"]
[WhiteElo "2766"]
[BlackElo "2600"]
[TimeControl "180+1"]
[EndTime "11:10:48 PDT"]
[Termination "Game drawn by repetition"]

1. d4 {[%clk 0:03:00.9]} 1... Nf6 {[%clk 0:02:59.4]} 2. c4 {[%clk 0:03:00]} 2...
e6 {[%clk 0:02:59.8]} 3. Nf3 {[%clk 0:02:59.6]} 3... d5 {[%clk 0:02:59.9]} 4.
Nc3 {[%clk 0:02:59.7]} 4... dxc4 {[%clk 0:03:00.2]} 5. e4 {[%clk 0:02:59.7]}
5... b5 {[%clk 0:02:59.9]} 6. Nxb5 {[%clk 0:02:58.6]} 6... Nxe4 {[%clk
0:03:00.3]} 7. Qa4 {[%clk 0:02:58]} 7... Bd7 {[%clk 0:02:58.8]} 8. Qxc4 {[%clk
0:02:52.3]} 8... Nc6 {[%clk 0:02:54.3]} 9. Bd3 {[%clk 0:02:28.1]} 9... Bb4+
{[%clk 0:02:15.5]} 10. Ke2 {[%clk 0:02:19.7]} 10... a6 {[%clk 0:02:14.2]} 11.
Bxe4 {[%clk 0:02:10.5]} 11... axb5 {[%clk 0:02:13.7]} 12. Qc2 {[%clk 0:02:10.5]}
12... Ra6 {[%clk 0:02:08.3]} 13. Bg5 {[%clk 0:02:06.4]} 13... Be7 {[%clk
0:02:05.5]} 14. Bxe7 {[%clk 0:02:02.9]} 14... Qxe7 {[%clk 0:02:06.4]} 15. Qc5
{[%clk 0:01:56.3]} 15... Qf6 {[%clk 0:01:59.5]} 16. Rhc1 {[%clk 0:01:48.2]}
16... Qf4 {[%clk 0:01:46.2]} 17. Bxc6 {[%clk 0:01:28.2]} 17... Rxc6 {[%clk
0:01:44.2]} 18. Qe5 {[%clk 0:01:28.7]} 18... Qxc1 {[%clk 0:01:22.9]} 19. Rxc1
{[%clk 0:01:28.2]} 19... Rxc1 {[%clk 0:01:23.8]} 20. Qg5 {[%clk 0:01:28.4]}
20... Rc2+ {[%clk 0:01:18.4]} 21. Kd3 {[%clk 0:01:28.4]} 21... Rxf2 {[%clk
0:01:17.3]} 22. Qxg7 {[%clk 0:01:27.6]} 22... Rf8 {[%clk 0:01:17.3]} 23. Ne5
{[%clk 0:01:24.8]} 23... Bc8 {[%clk 0:01:06]} 24. Ng4 {[%clk 0:01:21]} 24... Rf5
{[%clk 0:00:52.7]} 25. Nf6+ {[%clk 0:01:13.1]} 25... Ke7 {[%clk 0:00:49]} 26.
Nxh7 {[%clk 0:01:13.3]} 26... Rd8 {[%clk 0:00:48.6]} 27. g4 {[%clk 0:01:12]}
27... Rfd5 {[%clk 0:00:41.9]} 28. Qf6+ {[%clk 0:01:07.1]} 28... Ke8 {[%clk
0:00:42]} 29. Ng5 {[%clk 0:00:47.7]} 29... Rxd4+ {[%clk 0:00:40.3]} 30. Qxd4
{[%clk 0:00:47.9]} 30... Rxd4+ {[%clk 0:00:38.7]} 31. Kxd4 {[%clk 0:00:48.8]}
31... Ke7 {[%clk 0:00:27.4]} 32. Kc5 {[%clk 0:00:44.3]} 32... e5 {[%clk
0:00:22.9]} 33. h3 {[%clk 0:00:44.5]} 33... Bd7 {[%clk 0:00:22.6]} 34. Kd5
{[%clk 0:00:38.4]} 34... c6+ {[%clk 0:00:22.7]} 35. Kc5 {[%clk 0:00:35.5]} 35...
f6 {[%clk 0:00:22.7]} 36. Ne4 {[%clk 0:00:33.7]} 36... f5 {[%clk 0:00:21.6]} 37.
gxf5 {[%clk 0:00:34.6]} 37... Bxf5 {[%clk 0:00:22.4]} 38. Nf2 {[%clk 0:00:35]}
38... Bd7 {[%clk 0:00:22]} 39. h4 {[%clk 0:00:34]} 39... Bf5 {[%clk 0:00:20.3]}
40. b4 {[%clk 0:00:31.1]} 40... Kd7 {[%clk 0:00:19.5]} 41. a3 {[%clk 0:00:29]}
41... Bh7 {[%clk 0:00:18.1]} 42. Ng4 {[%clk 0:00:28.3]} 42... Ke6 {[%clk
0:00:18.4]} 43. Kxc6 {[%clk 0:00:27.5]} 43... Bd3 {[%clk 0:00:18.4]} 44. h5
{[%clk 0:00:25.2]} 44... Kf5 {[%clk 0:00:18.4]} 45. Ne3+ {[%clk 0:00:18.7]}
45... Kf4 {[%clk 0:00:18]} 46. Nd5+ {[%clk 0:00:17.9]} 46... Kg5 {[%clk
0:00:16.1]} 47. Kd6 {[%clk 0:00:18.3]} 47... e4 {[%clk 0:00:15.9]} 48. Ke5
{[%clk 0:00:18]} 48... Kxh5 {[%clk 0:00:16.5]} 49. Kd4 {[%clk 0:00:14.4]} 49...
Kg5 {[%clk 0:00:15]} 50. Ke3 {[%clk 0:00:13.1]} 50... Kf5 {[%clk 0:00:15]} 51.
Nf4 {[%clk 0:00:13.3]} 51... Bc4 {[%clk 0:00:13.6]} 52. Nh5 {[%clk 0:00:11.8]}
52... Ke5 {[%clk 0:00:13.4]} 53. Ng3 {[%clk 0:00:12.2]} 53... Bd5 {[%clk
0:00:13.9]} 54. Ne2 {[%clk 0:00:12.3]} 54... Bc6 {[%clk 0:00:13.8]} 55. Nc3
{[%clk 0:00:12.7]} 55... Kf5 {[%clk 0:00:04.3]} 56. Ne2 {[%clk 0:00:12.2]} 56...
Ke5 {[%clk 0:00:05]} 57. Nd4 {[%clk 0:00:12.8]} 57... Bd7 {[%clk 0:00:05.2]} 58.
Nb3 {[%clk 0:00:12.5]} 58... Bc6 {[%clk 0:00:05.4]} 59. Nd2 {[%clk 0:00:12.9]}
59... Kd5 {[%clk 0:00:05.1]} 60. Nxe4 {[%clk 0:00:10.3]} 60... Kc4 {[%clk
0:00:05.7]} 61. Nf6 {[%clk 0:00:10]} 61... Kb3 {[%clk 0:00:05.5]} 62. Kd4 {[%clk
0:00:10.9]} 62... Kxa3 {[%clk 0:00:05.9]} 63. Kc5 {[%clk 0:00:11.8]} 63... Bf3
{[%clk 0:00:04.6]} 64. Nd7 {[%clk 0:00:11]} 64... Be2 {[%clk 0:00:05.5]} 65. Ne5
{[%clk 0:00:11.2]} 65... Ka4 {[%clk 0:00:05.8]} 66. Nc6 {[%clk 0:00:11.4]} 66...
Bc4 {[%clk 0:00:05.7]} 67. Nd4 {[%clk 0:00:11.7]} 67... Bf1 {[%clk 0:00:06.2]}
68. Nf3 {[%clk 0:00:11.6]} 68... Bd3 {[%clk 0:00:06.6]} 69. Nd2 {[%clk
0:00:11.9]} 69... Be2 {[%clk 0:00:07.1]} 70. Ne4 {[%clk 0:00:12.1]} 70... Bc4
{[%clk 0:00:07.3]} 71. Nc3+ {[%clk 0:00:12.4]} 71... Kb3 {[%clk 0:00:07.9]} 72.
Nxb5 {[%clk 0:00:13]} 72... Bf1 {[%clk 0:00:08.1]} 73. Nd4+ {[%clk 0:00:13.3]}
73... Ka4 {[%clk 0:00:08.7]} 74. Nf3 {[%clk 0:00:13.5]} 74... Bd3 {[%clk
0:00:08.6]} 75. Nd2 {[%clk 0:00:13.8]} 75... Be2 {[%clk 0:00:09.4]} 76. Nc4
{[%clk 0:00:14.2]} 76... Bg4 {[%clk 0:00:08.3]} 77. b5 {[%clk 0:00:14.4]} 77...
Bf3 {[%clk 0:00:08.4]} 78. b6 {[%clk 0:00:14.1]} 78... Kb3 {[%clk 0:00:09]} 79.
Ne5 {[%clk 0:00:14]} 79... Bb7 {[%clk 0:00:08.8]} 80. Nf7 {[%clk 0:00:12.4]}
80... Ka4 {[%clk 0:00:08.9]} 81. Nd6 {[%clk 0:00:12.7]} 81... Ba6 {[%clk
0:00:09.5]} 82. Nc4 {[%clk 0:00:10.9]} 82... Bb7 {[%clk 0:00:09.3]} 83. Ne5
{[%clk 0:00:10.3]} 83... Ka5 {[%clk 0:00:09.5]} 84. Nc6+ {[%clk 0:00:10.2]}
84... Ka6 {[%clk 0:00:10.2]} 85. Nb4+ {[%clk 0:00:09.8]} 85... Ka5 {[%clk
0:00:10.4]} 86. Nd3 {[%clk 0:00:07.7]} 86... Ka6 {[%clk 0:00:10]} 87. Ne5 {[%clk
0:00:08.2]} 87... Ba8 {[%clk 0:00:09.7]} 88. Nd7 {[%clk 0:00:08.5]} 88... Kb7
{[%clk 0:00:10]} 89. Nf6 {[%clk 0:00:07.3]} 89... Kb8 {[%clk 0:00:10.4]} 90. Ne8
{[%clk 0:00:06.3]} 90... Bb7 {[%clk 0:00:10.6]} 91. Nd6 {[%clk 0:00:06.7]} 91...
Bf3 {[%clk 0:00:11.1]} 92. Nb5 {[%clk 0:00:06.6]} 92... Bh1 {[%clk 0:00:11.6]}
93. Nd4 {[%clk 0:00:06.9]} 93... Bg2 {[%clk 0:00:12.4]} 94. Kb5 {[%clk
0:00:07.2]} 94... Bf1+ {[%clk 0:00:12.3]} 95. Kc5 {[%clk 0:00:07.6]} 95... Bg2
{[%clk 0:00:13.2]} 96. Nc2 {[%clk 0:00:08.2]} 96... Kb7 {[%clk 0:00:13.5]} 97.
Nb4 {[%clk 0:00:08.6]} 97... Bh1 {[%clk 0:00:14.4]} 98. Kb5 {[%clk 0:00:09]}
98... Bg2 {[%clk 0:00:14.4]} 99. Ka5 {[%clk 0:00:09.5]} 99... Bh1 {[%clk
0:00:15]} 100. Nd3 {[%clk 0:00:09.9]} 100... Bg2 {[%clk 0:00:15.3]} 101. Nc5+
{[%clk 0:00:10.4]} 101... Kb8 {[%clk 0:00:15.1]} 102. Nd7+ {[%clk 0:00:10.7]}
102... Kb7 {[%clk 0:00:15.7]} 103. Ne5 {[%clk 0:00:11.2]} 103... Bh1 {[%clk
0:00:16.1]} 104. Nf7 {[%clk 0:00:11.6]} 104... Bg2 {[%clk 0:00:16.4]} 105. Nd6+
{[%clk 0:00:12]} 105... Kb8 {[%clk 0:00:17.3]} 106. Kb5 {[%clk 0:00:12.6]}
106... Bh1 {[%clk 0:00:17.9]} 107. Kc5 {[%clk 0:00:13.1]} 107... Bg2 {[%clk
0:00:18.3]} 108. Nf5 {[%clk 0:00:12.8]} 108... Bh1 {[%clk 0:00:18.7]} 109. Kd6
{[%clk 0:00:12.6]} 109... Bg2 {[%clk 0:00:19]} 110. Nh4 {[%clk 0:00:12.6]}
110... Kb7 {[%clk 0:00:19]} 111. Kc5 {[%clk 0:00:13.5]} 111... Bh1 {[%clk
0:00:19.3]} 112. Ng6 {[%clk 0:00:13.8]} 112... Bg2 {[%clk 0:00:19.3]} 113. Ne7
{[%clk 0:00:13.2]} 113... Bh1 {[%clk 0:00:19.4]} 114. Nf5 {[%clk 0:00:13.1]}
114... Bg2 {[%clk 0:00:19.8]} 115. Nd6+ {[%clk 0:00:13.5]} 115... Kb8 {[%clk
0:00:20]} 116. Nb5 {[%clk 0:00:14]} 116... Bh1 {[%clk 0:00:20.8]} 117. Nd4
{[%clk 0:00:14.1]} 117... Kb7 {[%clk 0:00:21.4]} 118. Nb3 {[%clk 0:00:13.6]}
118... Bg2 {[%clk 0:00:21.9]} 119. Na5+ {[%clk 0:00:14]} 119... Kb8 {[%clk
0:00:22.1]} 120. Kd4 {[%clk 0:00:09.1]} 120... Bh1 {[%clk 0:00:21.9]} 121. Ke5
{[%clk 0:00:09.6]} 121... Bg2 {[%clk 0:00:22.8]} 122. Kd6 {[%clk 0:00:10]}
122... Bh1 {[%clk 0:00:23.4]} 123. Kc5 {[%clk 0:00:10]} 123... Bg2 {[%clk
0:00:22.6]} 124. Nb3 {[%clk 0:00:09.9]} 124... Bh1 {[%clk 0:00:22.9]} 125. Nd4
{[%clk 0:00:10]} 1/2-1/2

[Event "*** Titled Tuesday Blitz"]
[Site "Chess.com"]
[Date "2020.04.28"]
[Round "7"]
[White "gmgamil"]
[Black "Fighter008"]
[Result "1-0"]
[WhiteElo "2697"]
[BlackElo "2522"]
[TimeControl "180+1"]
[EndTime "11:13:59 PDT"]
[Termination "gmgamil won by resignation"]

1. d4 {[%clk 0:02:53.1]} 1... Nf6 {[%clk 0:02:59.1]} 2. Nc3 {[%clk 0:02:54]}
2... d5 {[%clk 0:02:57.8]} 3. Bg5 {[%clk 0:02:54.4]} 3... Nbd7 {[%clk 0:02:56]}
4. f3 {[%clk 0:02:54.7]} 4... c5 {[%clk 0:02:46.4]} 5. e4 {[%clk 0:02:53.4]}
5... cxd4 {[%clk 0:02:44.7]} 6. Bxf6 {[%clk 0:02:52.5]} 6... Nxf6 {[%clk
0:02:27.4]} 7. Qxd4 {[%clk 0:02:49.6]} 7... e6 {[%clk 0:02:21.6]} 8. exd5 {[%clk
0:02:38.4]} 8... exd5 {[%clk 0:02:17.9]} 9. Bb5+ {[%clk 0:02:37.9]} 9... Bd7
{[%clk 0:02:16.4]} 10. Bxd7+ {[%clk 0:02:37.9]} 10... Qxd7 {[%clk 0:02:16.4]}
11. O-O-O {[%clk 0:02:38.8]} 11... Rd8 {[%clk 0:02:00.5]} 12. Nh3 {[%clk
0:02:38]} 12... Be7 {[%clk 0:01:59]} 13. Nf4 {[%clk 0:02:38.1]} 13... O-O {[%clk
0:01:57.9]} 14. Nfxd5 {[%clk 0:02:38]} 14... Nxd5 {[%clk 0:01:56.9]} 15. Nxd5
{[%clk 0:02:38.9]} 15... Bg5+ {[%clk 0:01:57]} 16. f4 {[%clk 0:02:36.5]} 16...
Be7 {[%clk 0:01:35.3]} 17. Nf6+ {[%clk 0:02:31]} 17... Bxf6 {[%clk 0:01:34.5]}
18. Qxd7 {[%clk 0:02:31.9]} 18... Rxd7 {[%clk 0:01:34.8]} 19. Rxd7 {[%clk
0:02:32.3]} 1-0

[Event "*** Titled Tuesday Blitz"]
[Site "Chess.com"]
[Date "2020.04.28"]
[Round "7"]
[White "louis198"]
[Black "leoduarte"]
[Result "1-0"]
[WhiteElo "2471"]
[BlackElo "2288"]
[TimeControl "180+1"]
[EndTime "11:14:25 PDT"]
[Termination "louis198 won by resignation"]

1. d4 {[%clk 0:03:00.9]} 1... Nf6 {[%clk 0:02:57.8]} 2. Bf4 {[%clk 0:02:59.8]}
2... c5 {[%clk 0:02:55.5]} 3. e3 {[%clk 0:02:59.4]} 3... b6 {[%clk 0:02:50.3]}
4. c4 {[%clk 0:02:57.9]} 4... e6 {[%clk 0:02:47.4]} 5. Nf3 {[%clk 0:02:56.2]}
5... Bb7 {[%clk 0:02:41.7]} 6. d5 {[%clk 0:02:55.4]} 6... exd5 {[%clk
0:02:37.7]} 7. Nc3 {[%clk 0:02:55.3]} 7... dxc4 {[%clk 0:02:23.5]} 8. Nb5 {[%clk
0:02:53.9]} 8... Na6 {[%clk 0:02:05]} 9. Bxc4 {[%clk 0:02:52.3]} 9... d5 {[%clk
0:01:56]} 10. Qa4 {[%clk 0:02:49.8]} 10... Qd7 {[%clk 0:01:34.9]} 11. Ne5 {[%clk
0:02:45.4]} 11... dxc4 {[%clk 0:01:08.5]} 12. Nxd7 {[%clk 0:02:40.3]} 12... Nxd7
{[%clk 0:01:09]} 13. Rd1 {[%clk 0:02:32.3]} 13... Bc6 {[%clk 0:00:55.2]} 14.
Qxa6 {[%clk 0:02:29.9]} 1-0

[Event "*** Titled Tuesday Blitz"]
[Site "Chess.com"]
[Date "2020.04.28"]
[Round "7"]
[White "SHIVACalypso"]
[Black "Pittiplatsh"]
[Result "0-1"]
[WhiteElo "2275"]
[BlackElo "2442"]
[TimeControl "180+1"]
[EndTime "11:14:31 PDT"]
[Termination "Pittiplatsh won by resignation"]

1. Nf3 {[%clk 0:03:00.9]} 1... Nf6 {[%clk 0:02:59.2]} 2. c4 {[%clk 0:03:00]}
2... g6 {[%clk 0:02:59.5]} 3. g3 {[%clk 0:02:59.6]} 3... Bg7 {[%clk 0:02:59.3]}
4. Bg2 {[%clk 0:02:59.6]} 4... O-O {[%clk 0:02:59.4]} 5. O-O {[%clk 0:02:59.1]}
5... d5 {[%clk 0:02:59.2]} 6. d4 {[%clk 0:02:57.7]} 6... dxc4 {[%clk 0:02:58.7]}
7. Na3 {[%clk 0:02:57.5]} 7... Nc6 {[%clk 0:02:58.2]} 8. Nxc4 {[%clk 0:02:56.7]}
8... Be6 {[%clk 0:02:58.4]} 9. Nce5 {[%clk 0:02:53.2]} 9... Bd5 {[%clk
0:02:55.2]} 10. Nxc6 {[%clk 0:02:49.2]} 10... Bxc6 {[%clk 0:02:55.1]} 11. b3
{[%clk 0:02:40.7]} 11... a5 {[%clk 0:02:53.8]} 12. a4 {[%clk 0:02:38.5]} 12...
Nd5 {[%clk 0:02:47.5]} 13. Bb2 {[%clk 0:02:33.1]} 13... Nb4 {[%clk 0:02:46.6]}
14. Ne5 {[%clk 0:02:21.5]} 14... Bxg2 {[%clk 0:02:42.3]} 15. Kxg2 {[%clk
0:02:19.9]} 15... Qd5+ {[%clk 0:02:39.2]} 16. f3 {[%clk 0:02:12.3]} 16... Bxe5
{[%clk 0:02:33]} 17. dxe5 {[%clk 0:02:04.6]} 17... Rfd8 {[%clk 0:02:19.2]} 18.
Qxd5 {[%clk 0:01:55.2]} 18... Rxd5 {[%clk 0:02:18.4]} 19. Rad1 {[%clk
0:01:44.8]} 19... Rad8 {[%clk 0:02:16.7]} 20. Rxd5 {[%clk 0:01:42.8]} 20... Rxd5
{[%clk 0:02:16]} 21. Ba3 {[%clk 0:01:26.4]} 21... Nc2 {[%clk 0:02:14.6]} 22.
Bxe7 {[%clk 0:01:23.1]} 22... Ne3+ {[%clk 0:02:13.9]} 0-1

[Event "*** Titled Tuesday Blitz"]
[Site "Chess.com"]
[Date "2020.04.28"]
[Round "7"]
[White "politeplayer"]
[Black "AsaHoffmann"]
[Result "1-0"]
[WhiteElo "2206"]
[BlackElo "2293"]
[TimeControl "180+1"]
[EndTime "11:14:41 PDT"]
[Termination "politeplayer won by resignation"]

1. e4 {[%clk 0:03:00.9]} 1... d6 {[%clk 0:02:58.7]} 2. d4 {[%clk 0:02:59.1]}
2... Nf6 {[%clk 0:02:57.9]} 3. Nc3 {[%clk 0:02:59.6]} 3... c6 {[%clk 0:02:57.6]}
4. f4 {[%clk 0:02:59.6]} 4... Qa5 {[%clk 0:02:56.8]} 5. Nf3 {[%clk 0:02:58.5]}
5... Nxe4 {[%clk 0:02:55.6]} 6. Bd3 {[%clk 0:02:54]} 6... Nxc3 {[%clk
0:02:50.9]} 7. bxc3 {[%clk 0:02:53.8]} 7... Bg4 {[%clk 0:02:44.5]} 8. Rb1 {[%clk
0:02:43.3]} 8... Qc7 {[%clk 0:02:38.3]} 9. O-O {[%clk 0:02:41.2]} 9... e6 {[%clk
0:02:36.7]} 10. h3 {[%clk 0:02:27.5]} 10... Bxf3 {[%clk 0:02:35.9]} 11. Qxf3
{[%clk 0:02:27.5]} 11... g6 {[%clk 0:02:35.5]} 12. f5 {[%clk 0:02:24.4]} 12...
gxf5 {[%clk 0:02:33.8]} 13. Bxf5 {[%clk 0:02:24.2]} 13... exf5 {[%clk 0:02:28]}
14. Bg5 {[%clk 0:02:23.3]} 14... Bg7 {[%clk 0:02:07.8]} 15. Rfe1+ {[%clk
0:02:03.5]} 15... Kf8 {[%clk 0:02:06.4]} 16. Re7 {[%clk 0:02:00.9]} 16... Nd7
{[%clk 0:02:01.1]} 17. Qxf5 {[%clk 0:01:55.1]} 17... f6 {[%clk 0:01:54.3]} 18.
Qe6 {[%clk 0:01:32.6]} 1-0

[Event "*** Titled Tuesday Blitz"]
[Site "Chess.com"]
[Date "2020.04.28"]
[Round "7"]
[White "harvsp123"]
[Black "Chuchofrio1"]
[Result "1-0"]
[WhiteElo "2532"]
[BlackElo "2247"]
[TimeControl "180+1"]
[EndTime "11:14:53 PDT"]
[Termination "harvsp123 won by resignation"]

1. e4 {[%clk 0:03:00.9]} 1... e5 {[%clk 0:02:57.5]} 2. Nf3 {[%clk 0:03:00.7]}
2... Nc6 {[%clk 0:02:56.7]} 3. Bb5 {[%clk 0:03:00.4]} 3... a6 {[%clk 0:02:55.6]}
4. Ba4 {[%clk 0:03:00.9]} 4... Nf6 {[%clk 0:02:54.8]} 5. O-O {[%clk 0:03:01.5]}
5... Be7 {[%clk 0:02:54.3]} 6. Re1 {[%clk 0:03:02.1]} 6... b5 {[%clk 0:02:53.8]}
7. Bb3 {[%clk 0:03:02.7]} 7... O-O {[%clk 0:02:53.9]} 8. h3 {[%clk 0:03:02.6]}
8... d6 {[%clk 0:02:50.3]} 9. c3 {[%clk 0:03:01.7]} 9... Be6 {[%clk 0:02:49.7]}
10. Bxe6 {[%clk 0:02:43.3]} 10... fxe6 {[%clk 0:02:50.6]} 11. d4 {[%clk
0:02:43.6]} 11... exd4 {[%clk 0:02:37.2]} 12. cxd4 {[%clk 0:02:44.5]} 12... d5
{[%clk 0:02:28.2]} 13. exd5 {[%clk 0:02:12.9]} 13... exd5 {[%clk 0:02:29.1]} 14.
Nc3 {[%clk 0:01:59]} 14... Nxd4 {[%clk 0:01:49.9]} 15. Nxd4 {[%clk 0:01:57.7]}
15... Qd7 {[%clk 0:01:31.6]} 16. Qe2 {[%clk 0:01:49.1]} 16... Bc5 {[%clk
0:01:27.9]} 17. Qe6+ {[%clk 0:01:47.8]} 1-0

[Event "*** Titled Tuesday Blitz"]
[Site "Chess.com"]
[Date "2020.04.28"]
[Round "7"]
[White "calin_dragomirescu"]
[Black "Kingsman132"]
[Result "1-0"]
[WhiteElo "2244"]
[BlackElo "2385"]
[TimeControl "180+1"]
[EndTime "11:14:54 PDT"]
[Termination "calin_dragomirescu won by resignation"]

1. Nf3 {[%clk 0:03:00.9]} 1... d5 {[%clk 0:02:57.1]} 2. c4 {[%clk 0:03:00.6]}
2... c6 {[%clk 0:02:52.5]} 3. d4 {[%clk 0:02:59.8]} 3... Nf6 {[%clk 0:02:48.8]}
4. e3 {[%clk 0:03:00]} 4... e6 {[%clk 0:02:47.8]} 5. b3 {[%clk 0:02:59.7]} 5...
Bb4+ {[%clk 0:02:44.7]} 6. Nbd2 {[%clk 0:02:59.1]} 6... Ne4 {[%clk 0:02:44]} 7.
Bd3 {[%clk 0:02:56.9]} 7... Nf6 {[%clk 0:02:18.1]} 8. O-O {[%clk 0:02:55.2]}
8... O-O {[%clk 0:02:18]} 9. Ne5 {[%clk 0:02:50.8]} 9... c5 {[%clk 0:02:10.3]}
10. a3 {[%clk 0:02:44.9]} 10... Bc3 {[%clk 0:02:09.3]} 11. Rb1 {[%clk
0:02:45.1]} 11... cxd4 {[%clk 0:02:09.5]} 12. exd4 {[%clk 0:02:41.9]} 12... Bxd4
{[%clk 0:02:09.6]} 13. Ndf3 {[%clk 0:02:42.1]} 13... Bc5 {[%clk 0:02:00]} 14.
Bb2 {[%clk 0:02:37.3]} 14... Nc6 {[%clk 0:01:54.4]} 15. Ng5 {[%clk 0:02:26.6]}
15... dxc4 {[%clk 0:01:29.4]} 16. bxc4 {[%clk 0:02:11.2]} 16... Bd4 {[%clk
0:01:18.6]} 17. Nxc6 {[%clk 0:02:04.8]} 17... bxc6 {[%clk 0:01:11.2]} 18. Bxd4
{[%clk 0:02:04.6]} 18... h6 {[%clk 0:01:06.9]} 19. Bxf6 {[%clk 0:01:59.8]} 1-0

[Event "*** Titled Tuesday Blitz"]
[Site "Chess.com"]
[Date "2020.04.28"]
[Round "7"]
[White "ViktoriyaTarasova"]
[Black "Andro2"]
[Result "0-1"]
[WhiteElo "2272"]
[BlackElo "2436"]
[TimeControl "180+1"]
[EndTime "11:15:02 PDT"]
[Termination "Andro2 won by resignation"]

1. d4 {[%clk 0:03:00.9]} 1... Nf6 {[%clk 0:02:57.9]} 2. c4 {[%clk 0:03:01.5]}
2... c5 {[%clk 0:02:58.3]} 3. d5 {[%clk 0:03:00.4]} 3... e5 {[%clk 0:02:58.6]}
4. Nc3 {[%clk 0:02:59.7]} 4... d6 {[%clk 0:02:58.8]} 5. e4 {[%clk 0:02:59.9]}
5... Nbd7 {[%clk 0:02:58.6]} 6. g3 {[%clk 0:03:00.4]} 6... a6 {[%clk 0:02:57.3]}
7. a4 {[%clk 0:02:59.7]} 7... Be7 {[%clk 0:02:54.9]} 8. Bg2 {[%clk 0:03:00.2]}
8... Nf8 {[%clk 0:02:53.4]} 9. Nf3 {[%clk 0:03:00.4]} 9... h5 {[%clk 0:02:54]}
10. h3 {[%clk 0:02:58.6]} 10... Ng6 {[%clk 0:02:50.6]} 11. Bg5 {[%clk
0:02:57.1]} 11... Rb8 {[%clk 0:02:29.1]} 12. a5 {[%clk 0:02:51.6]} 12... Nh7
{[%clk 0:01:57.7]} 13. Bxe7 {[%clk 0:02:50.4]} 13... Qxe7 {[%clk 0:01:57.8]} 14.
Na4 {[%clk 0:02:50.1]} 14... h4 {[%clk 0:01:54.6]} 15. Qe2 {[%clk 0:02:47.3]}
15... Ng5 {[%clk 0:01:42.6]} 16. Nxg5 {[%clk 0:02:35.1]} 16... Qxg5 {[%clk
0:01:41.9]} 17. Qf3 {[%clk 0:02:35.3]} 17... O-O {[%clk 0:01:35.7]} 18. g4
{[%clk 0:02:25.9]} 18... Nf4 {[%clk 0:01:33.4]} 19. O-O {[%clk 0:02:21]} 19...
g6 {[%clk 0:01:28.6]} 20. Nb6 {[%clk 0:02:16.1]} 20... Kh7 {[%clk 0:01:25.4]}
21. Nxc8 {[%clk 0:02:15.5]} 21... Rbxc8 {[%clk 0:01:25.3]} 22. Rfb1 {[%clk
0:02:09.2]} 22... f5 {[%clk 0:01:22.1]} 23. exf5 {[%clk 0:02:07.9]} 23... gxf5
{[%clk 0:01:22.1]} 24. gxf5 {[%clk 0:02:08.4]} 24... Rg8 {[%clk 0:01:21.6]} 0-1

[Event "*** Titled Tuesday Blitz"]
[Site "Chess.com"]
[Date "2020.04.28"]
[Round "7"]
[White "Semen16"]
[Black "Anaj14"]
[Result "0-1"]
[WhiteElo "2333"]
[BlackElo "2196"]
[TimeControl "180+1"]
[EndTime "11:15:10 PDT"]
[Termination "Anaj14 won by checkmate"]

1. e4 {[%clk 0:03:00.9]} 1... c5 {[%clk 0:02:58.8]} 2. c3 {[%clk 0:03:01.2]}
2... d5 {[%clk 0:02:56.7]} 3. exd5 {[%clk 0:03:00.8]} 3... Qxd5 {[%clk
0:02:57.6]} 4. d4 {[%clk 0:03:00.7]} 4... Nf6 {[%clk 0:02:56.9]} 5. Nf3 {[%clk
0:03:00.9]} 5... e6 {[%clk 0:02:57]} 6. Na3 {[%clk 0:02:50.4]} 6... Be7 {[%clk
0:02:57]} 7. Nb5 {[%clk 0:02:42.9]} 7... Qd8 {[%clk 0:02:56.9]} 8. Bf4 {[%clk
0:02:42.3]} 8... Nd5 {[%clk 0:02:56.5]} 9. Bg3 {[%clk 0:02:38.8]} 9... a6 {[%clk
0:02:55.5]} 10. Na3 {[%clk 0:02:38.4]} 10... O-O {[%clk 0:02:51]} 11. Nc2 {[%clk
0:02:34.7]} 11... cxd4 {[%clk 0:02:44.6]} 12. Ncxd4 {[%clk 0:02:34.4]} 12... b5
{[%clk 0:02:37.5]} 13. Bxb8 {[%clk 0:02:29.3]} 13... Rxb8 {[%clk 0:02:36]} 14.
Nc6 {[%clk 0:02:29.2]} 14... Qc7 {[%clk 0:02:31.4]} 15. Nxb8 {[%clk 0:02:28.9]}
15... Qxb8 {[%clk 0:02:32.3]} 16. Bd3 {[%clk 0:02:24]} 16... Nf4 {[%clk
0:02:30.6]} 17. Bf1 {[%clk 0:01:59]} 17... Bb7 {[%clk 0:02:28.3]} 18. Qd4 {[%clk
0:01:54.4]} 18... Rd8 {[%clk 0:02:25.3]} 19. Qe3 {[%clk 0:01:53.9]} 19... Qd6
{[%clk 0:02:12.7]} 20. Be2 {[%clk 0:01:51.4]} 20... Nxg2+ {[%clk 0:02:12.3]} 21.
Kf1 {[%clk 0:01:51.6]} 21... Nxe3+ {[%clk 0:02:12.5]} 22. fxe3 {[%clk
0:01:52.5]} 22... Bxf3 {[%clk 0:02:04.9]} 23. Bxf3 {[%clk 0:01:52.2]} 23... Qe5
{[%clk 0:02:03.8]} 24. Ke2 {[%clk 0:01:50.5]} 24... Bc5 {[%clk 0:02:02.3]} 25.
Kf2 {[%clk 0:01:21]} 25... Rd2+ {[%clk 0:01:59.4]} 26. Kf1 {[%clk 0:01:13.7]}
26... Qxe3 {[%clk 0:02:00.3]} 27. Be2 {[%clk 0:01:10.3]} 27... Qxe2# {[%clk
0:01:58.4]} 0-1

[Event "*** Titled Tuesday Blitz"]
[Site "Chess.com"]
[Date "2020.04.28"]
[Round "7"]
[White "adiosabu"]
[Black "Xeniya2005"]
[Result "1-0"]
[WhiteElo "2403"]
[BlackElo "2252"]
[TimeControl "180+1"]
[EndTime "11:15:13 PDT"]
[Termination "adiosabu won by resignation"]

1. b3 {[%clk 0:03:00.9]} 1... d5 {[%clk 0:02:59.2]} 2. Bb2 {[%clk 0:03:01]} 2...
Bg4 {[%clk 0:02:59.8]} 3. h3 {[%clk 0:02:57.8]} 3... Bh5 {[%clk 0:02:58.8]} 4.
g4 {[%clk 0:02:57.8]} 4... Bg6 {[%clk 0:02:58]} 5. Bg2 {[%clk 0:02:58.5]} 5...
c6 {[%clk 0:02:53.1]} 6. f4 {[%clk 0:02:50.8]} 6... f5 {[%clk 0:02:36.8]} 7. Nf3
{[%clk 0:02:47.7]} 7... fxg4 {[%clk 0:02:34.6]} 8. hxg4 {[%clk 0:02:47]} 8...
Nd7 {[%clk 0:02:31.5]} 9. f5 {[%clk 0:02:26.3]} 9... Bf7 {[%clk 0:02:30.3]} 10.
Ng5 {[%clk 0:02:26.9]} 10... h6 {[%clk 0:02:22.8]} 11. e4 {[%clk 0:02:12]} 11...
dxe4 {[%clk 0:02:16.7]} 12. Nc3 {[%clk 0:01:57.4]} 12... Bd5 {[%clk 0:02:07]}
13. Nxd5 {[%clk 0:01:43.6]} 13... cxd5 {[%clk 0:02:07.9]} 14. Ne6 {[%clk
0:01:43.9]} 14... Qb8 {[%clk 0:02:06.1]} 15. g5 {[%clk 0:01:39.9]} 15... Qg3+
{[%clk 0:02:03.9]} 16. Kf1 {[%clk 0:01:39.7]} 16... Ne5 {[%clk 0:01:57.6]} 17.
Rh3 {[%clk 0:01:30.2]} 17... Qg4 {[%clk 0:01:56.7]} 18. Qxg4 {[%clk 0:01:17.9]}
18... Nxg4 {[%clk 0:01:57.6]} 19. Nc7+ {[%clk 0:01:15.4]} 19... Kd7 {[%clk
0:01:53.7]} 20. Nxa8 {[%clk 0:01:15.2]} 20... e6 {[%clk 0:01:45.5]} 21. fxe6+
{[%clk 0:01:13.1]} 21... Kxe6 {[%clk 0:01:46.4]} 22. Nc7+ {[%clk 0:01:10.1]} 1-0